Workbook

Sheet Spreadsheet7.1
B10: Parameters | G10: Probability
B11: Mu (mean) | C11: 2 | F11: =Mu-Sigma*4 -> -14 | G11: =NORMDIST(F11,Mu,Sigma,FALSE) -> 3.345755644e-05 | H11: =EE -> 2.79118623 | I11: =PFE -> 11.3053915 | J11: 0 | K11: =Mu -> 2
B12: Standard deviation (sigma) | C12: 4 | F12: =F11+Sigma/10 -> -13.6 | G12: 4.966386785e-05 | H12: =EE -> 2.79118623 | I12: =PFE -> 11.3053915 | J12: =MAX(G11:G96) -> 0.0997355701 | K12: =K11 -> 2
B13: Alpha (confidence level) | C13: 0.99 | F13: -13.2 | G13: 7.298673145e-05
F14: -12.8 | G14: 0.0001061950676
B15: Calculations | F15: -12.4 | G15: 0.0001529754825
B16: Expected exposure (EE) | C16: =Mu*NORMSDIST(Mu/Sigma)+Sigma*NORMDIST(Mu/Sigma,0,1,FALSE) -> 2.79118623 | F16: -12 | G16: 0.0002181706738
B17: Potential future exposure (PFE) | C17: =Mu+NORMSINV(Alpha)*Sigma -> 11.3053915 | F17: -11.6 | G17: 0.0003080547921
F18: -11.2 | G18: 0.0004306422348
F19: -10.8 | G19: 0.0005960220504
F20: -10.4 | G20: 0.000816704764
F21: -10 | G21: 0.001107962103
F22: -9.6 | G22: 0.001488133105
F23: -9.2 | G23: 0.001978862896
F24: -8.8 | G24: 0.002605233704
F25: -8.4 | G25: 0.003395742308
F26: -8 | G26: 0.004382075123
F27: -7.6 | G27: 0.005598632574
F28: -7.2 | G28: 0.007081759435
F29: -6.8 | G29: 0.008868648212
F30: -6.4 | G30: 0.010995899
F31: -6 | G31: 0.01349774163
F32: -5.6 | G32: 0.01640395369
F33: -5.2 | G33: 0.01973753958
F34: -4.8 | G34: 0.02351226934
F35: -4.4 | G35: 0.02773020867
F36: -4 | G36: 0.03237939892
F37: -3.6 | G37: 0.03743186641
F38: -3.2 | G38: 0.04284214801
F39: -2.8 | G39: 0.04854651375
F40: -2.4 | G40: 0.05446304426
F41: -2 | G41: 0.06049268113
F42: -1.6 | G42: 0.06652131247
F43: -1.2 | G43: =NORMDIST(F43,Mu,Sigma,FALSE) -> 0.07242288819
F44: =F43+Sigma/10 -> -0.8 | G44: 0.07806348334
F45: -0.4 | G45: 0.08330615072
F46: 7.882583475e-15 | G46: 0.08801633169
F47: 0.4 | G47: 0.09206753508
F48: 0.8 | G48: 0.09534695387
F49: 1.2 | G49: 0.09776067349
F50: 1.6 | G50: 0.09923813687
F51: 2 | G51: 0.0997355701
F52: 2.4 | G52: 0.09923813687
F53: 2.8 | G53: 0.09776067349
F54: 3.2 | G54: 0.09534695387
F55: 3.6 | G55: 0.09206753508
F56: 4 | G56: 0.08801633169
F57: 4.4 | G57: 0.08330615072
F58: 4.8 | G58: 0.07806348334
F59: 5.2 | G59: 0.07242288819
F60: 5.6 | G60: 0.06652131247
F61: 6 | G61: 0.06049268113
F62: 6.4 | G62: 0.05446304426
F63: 6.8 | G63: 0.04854651375
F64: 7.2 | G64: 0.04284214801
F65: 7.6 | G65: 0.03743186641
F66: 8 | G66: 0.03237939892
F67: 8.4 | G67: 0.02773020867
F68: 8.8 | G68: 0.02351226934
F69: 9.2 | G69: 0.01973753958
F70: 9.6 | G70: 0.01640395369
F71: 10 | G71: 0.01349774163
F72: 10.4 | G72: 0.010995899
F73: 10.8 | G73: 0.008868648212
F74: 11.2 | G74: 0.007081759435
F75: 11.6 | G75: =NORMDIST(F75,Mu,Sigma,FALSE) -> 0.005598632574
F76: =F75+Sigma/10 -> 12 | G76: 0.004382075123
F77: 12.4 | G77: 0.003395742308
F78: 12.8 | G78: 0.002605233704
F79: 13.2 | G79: 0.001978862896
F80: 13.6 | G80: 0.001488133105
F81: 14 | G81: 0.001107962103
F82: 14.4 | G82: 0.000816704764
F83: 14.8 | G83: 0.0005960220504
F84: 15.2 | G84: 0.0004306422348
F85: 15.6 | G85: 0.0003080547921
F86: 16 | G86: 0.0002181706738
F87: 16.4 | G87: 0.0001529754825
F88: 16.8 | G88: 0.0001061950676
F89: 17.2 | G89: 7.298673145e-05
F90: 17.6 | G90: 4.966386785e-05
F91: 18 | G91: 3.345755644e-05
F92: 18.4 | G92: 2.231541429e-05
F93: 18.8 | G93: 1.473576694e-05
F94: 19.2 | G94: 9.633799186e-06
F95: 19.6 | G95: 6.235617823e-06
F96: 20 | G96: 3.995935277e-06

Sheet Spreadsheet7.2
C11: EE | D11: Effective EE | E11: EPE | F11: Effective EPE
B12: 0 | C12: 0.11 | D12: =C12 -> 0.11 | E12: =AVERAGE(C12:C36) -> 0.30544 | F12: =AVERAGE(D12:D36) -> 0.7584
B13: =B12+1/24 -> 0.04166666667 | C13: 0.21 | D13: =IF(B13<=1,MAX(C13,D12),C13) -> 0.21 | E13: =E12 -> 0.30544 | F13: =F12 -> 0.7584
B14: =B13+1/24 -> 0.08333333333 | C14: 0.29 | D14: =IF(B14<=1,MAX(C14,D13),C14) -> 0.29 | E14: =E13 -> 0.30544 | F14: =F13 -> 0.7584
B15: 0.125 | C15: 0.4 | D15: 0.4 | E15: 0.30544 | F15: 0.7584
B16: 0.1666666667 | C16: 0.62 | D16: 0.62 | E16: 0.30544 | F16: 0.7584
B17: 0.2083333333 | C17: 0.45 | D17: 0.62 | E17: 0.30544 | F17: 0.7584
B18: 0.25 | C18: 0.35 | D18: 0.62 | E18: 0.30544 | F18: 0.7584
B19: 0.2916666667 | C19: 0.38 | D19: 0.62 | E19: 0.30544 | F19: 0.7584
B20: 0.3333333333 | C20: 0.55 | D20: 0.62 | E20: 0.30544 | F20: 0.7584
B21: 0.375 | C21: 0.75 | D21: 0.75 | E21: 0.30544 | F21: 0.7584
B22: 0.4166666667 | C22: 0.94 | D22: 0.94 | E22: 0.30544 | F22: 0.7584
B23: 0.4583333333 | C23: 0.52 | D23: 0.94 | E23: 0.30544 | F23: 0.7584
B24: 0.5 | C24: 0.4 | D24: 0.94 | E24: 0.30544 | F24: 0.7584
B25: 0.5416666667 | C25: 0.35 | D25: 0.94 | E25: 0.30544 | F25: 0.7584
B26: 0.5833333333 | C26: 0.3 | D26: 0.94 | E26: 0.30544 | F26: 0.7584
B27: 0.625 | C27: 0.25 | D27: 0.94 | E27: 0.30544 | F27: 0.7584
B28: 0.6666666667 | C28: 0.22 | D28: 0.94 | E28: 0.30544 | F28: 0.7584
B29: 0.7083333333 | C29: 0.2 | D29: 0.94 | E29: 0.30544 | F29: 0.7584
B30: 0.75 | C30: 0.156 | D30: 0.94 | E30: 0.30544 | F30: 0.7584
B31: 0.7916666667 | C31: 0.1 | D31: 0.94 | E31: 0.30544 | F31: 0.7584
B32: 0.8333333333 | C32: 0.05 | D32: 0.94 | E32: 0.30544 | F32: 0.7584
B33: 0.875 | C33: 0.03 | D33: 0.94 | E33: 0.30544 | F33: 0.7584
B34: 0.9166666667 | C34: 0.01 | D34: 0.94 | E34: 0.30544 | F34: 0.7584
B35: 0.9583333333 | C35: 0 | D35: 0.94 | E35: 0.30544 | F35: 0.7584
B36: 1 | C36: 0 | D36: 0.94 | E36: 0.30544 | F36: 0.7584

Sheet Spreadsheet7.3
B9: Parameters
B10: IR Vol | C10: 0.008
B11: FX Vol | C11: 0.08
B12: Correlation | C12: 0.2
B13: Confidence level | C13: 0.975
C15: IRS | D15: FX Forward | E15: CCS
B16: 0 | C16: =NORMSINV(ConfLevel)*SQRT(B16)*(10-B16)*IRVol -> 0 | D16: =NORMSINV(ConfLevel)*FXVol*SQRT(B16) -> 0 | E16: =SQRT(C16^2+D16^2+2*IRFXCorr*C16*D16) -> 0
B17: 0.05 | C17: 0.03488559711 | D17: 0.03506090162 | E17: 0.05418043839
B18: 0.1 | C18: 0.04908776656 | D18: 0.04958360258 | E18: 0.07643115722
B19: 0.2 | C19: 0.06871936718 | D19: 0.07012180325 | E19: 0.1075495658
B20: 0.3 | C20: 0.08330487933 | D20: 0.0858813189 | E20: 0.1310611957
B21: 0.4 | C21: 0.09520051696 | D21: 0.09916720517 | E21: 0.1505774906
B22: =B21+0.2 -> 0.6 | C22: 0.1141672544 | D22: 0.1214545259 | E22: 0.1825700297
B23: 0.8 | C23: 0.129024118 | D23: 0.1402436065 | E23: 0.2086945501
B24: 1 | C24: 0.1411174069 | D24: 0.1567971188 | E24: 0.2309765791
B25: 1.2 | C25: 0.1511511213 | D25: 0.1717626378 | E25: 0.2504673857
B26: 1.4 | C26: 0.1595513735 | D26: 0.1855248529 | E26: 0.2677991969
B27: 1.6 | C27: 0.1666009047 | D27: 0.1983344103 | E27: 0.283389267
B28: 1.8 | C28: 0.172499636 | D28: 0.2103654097 | E28: 0.2975313642
B29: 2 | C29: 0.1773956895 | D29: 0.2217446119 | E29: 0.3104424567
B30: 2.2 | C30: 0.1814028146 | D30: 0.232567711 | E30: 0.3222888398
B31: 2.4 | C31: 0.1846108794 | D31: 0.2429090519 | E31: 0.3332018094
B32: 2.6 | C32: 0.1870925403 | D32: 0.2528277571 | E32: 0.3432875884
B33: 2.8 | C33: 0.1889076694 | D33: 0.2623717631 | E33: 0.3526338965
B34: 3 | C34: 0.1901064033 | D34: 0.2715805762 | E34: 0.3613144566
B35: 3.2 | C35: 0.1907313048 | D35: 0.280487213 | E35: 0.369392182
B36: 3.4 | C36: 0.190818937 | D36: 0.2891196014 | E36: 0.3769214887
B37: 3.6 | C37: 0.1904010339 | D37: 0.2975016155 | E37: 0.3839500111
B38: 3.8 | C38: 0.1895053895 | D38: 0.3056538541 | E38: 0.3905198999
B39: 4 | C39: 0.1881565425 | D39: 0.3135942375 | E39: 0.3966688207
B40: =B39+0.2 -> 4.2 | C40: 0.1863763133 | D40: 0.3213384712 | E40: 0.4024307333
B41: 4.4 | C41: 0.1841842302 | D41: 0.3289004111 | E41: 0.4078365097
B42: 4.6 | C42: 0.1815978714 | D42: 0.3362923545 | E42: 0.412914428
B43: 4.8 | C43: 0.1786331433 | D43: 0.3435252756 | E43: 0.417690573
B44: 5 | C44: 0.1753045081 | D44: 0.3506090162 | E44: 0.4221891629
B45: 5.2 | C45: 0.1716251727 | D45: 0.3575524431 | E45: 0.4264328193
B46: 5.4 | C46: 0.1676072458 | D46: 0.3643635778 | E46: 0.4304427906
B47: 5.6 | C47: 0.1632618705 | D47: 0.3710497057 | E47: 0.4342391393
B48: 5.8 | C48: =NORMSINV(ConfLevel)*SQRT(B48)*(10-B48)*IRVol -> 0.1585993362 | D48: =NORMSINV(ConfLevel)*FXVol*SQRT(B48) -> 0.3776174671 | E48: =SQRT(C48^2+D48^2+2*IRFXCorr*C48*D48) -> 0.4378408988
B49: 6 | C49: 0.1536291736 | D49: 0.3840729341 | E49: 0.4412662062
B50: 6.2 | C50: 0.1483602373 | D50: 0.3904216772 | E50: 0.444532414
B51: 6.4 | C51: 0.1428007754 | D51: 0.3966688207 | E51: 0.447656186
B52: 6.6 | C52: 0.1369584912 | D52: 0.4028190916 | E52: 0.4506535775
B53: 6.8 | C53: 0.1308405957 | D53: 0.4088768615 | E53: 0.4535401043
B54: 7 | C54: 0.1244538548 | D54: 0.4148461825 | E54: 0.4563308008
B55: 7.2 | C55: 0.1178046295 | D55: 0.4207308195 | E55: 0.4590402689
B56: 7.4 | C56: 0.1108989121 | D56: 0.4265342773 | E56: 0.4616827194
B57: 7.6 | C57: 0.1037423582 | D57: 0.4322598258 | E57: 0.4642720058
B58: 7.8 | C58: 0.0963403146 | D58: 0.4379105209 | E58: 0.4668216528
B59: 8 | C59: 0.08869784476 | D59: 0.4434892238 | E59: 0.4693448781
B60: 8.2 | C60: 0.08081975123 | D60: 0.4489986179 | E60: 0.4718546108
B61: 8.4 | C61: 0.07271059586 | D61: 0.4544412241 | E61: 0.4743635039
B62: 8.6 | C62: 0.06437471796 | D62: 0.459819414 | E62: 0.4768839438
B63: 8.8 | C63: 0.05581625064 | D63: 0.465135422 | E63: 0.4794280558
B64: 9 | C64: 0.04703913563 | D64: 0.4703913563 | E64: 0.4820077069
B65: 9.2 | C65: 0.03804713669 | D65: 0.4755892086 | E65: 0.4846345046
B66: 9.4 | C66: 0.02884385178 | D66: 0.480730863 | E66: 0.4873197947
B67: 9.6 | C67: 0.01943272415 | D67: 0.4858181038 | E67: 0.4900746559
B68: 9.8 | C68: 0.009817052454 | D68: 0.4908526227 | E68: 0.4929098925
B69: 10 | C69: 1.761563431e-16 | D69: 0.4958360258 | E69: 0.4958360258
B70: 10.2 | C70: -0.01001539678 | D70: 0.5007698392 | E70: 0.4988632844

Sheet Spreadsheet7.4
B9: Parameters | E9: Credit curve
B10: Initial spread | C10: 500 | E10: 1Y | F10: 200
B11: Recovery rate | C11: 0.4 | E11: 2Y | F11: 250
B12: Interest rate | C12: 0.05 | E12: 3Y | F12: 300
B13: Spread volatility | C13: 0.75 | E13: 4Y | F13: 350
B14: Confidence level | C14: 0.99 | E14: 5Y | F14: 400
C18: Def Prob | D18: Duration | E18: dSpread | F18: EE | G18: PFE
B19: 0 | F19: 0 | G19: 0
B20: 0.05 | C20: =EXP(-B17*$F$10/(1-Rec)/10000)-EXP(-B20*$F$10/(1-Rec)/10000) -> 0.001665278549 | D20: =(1-EXP(-(CDSSpread/(1-Rec)/10000+IRate)*(5-B20)))/(CDSSpread/(1-Rec)/10000+IRate) -> 3.623614991 | E20: =CDSSpread*SpreadVol*SQRT(B20) -> 83.85254916 | F20: =C20*(1-Rec)+(1-C20)*E20*D20/SQRT(2*PI())/10000 -> 0.01310081632 | G20: =IF(C20>(1-ConfLevel1),(1-Rec),E20*D20/10000*NORMSINV(ConfLevel1)) -> 0.07068592991
B21: 0.1 | C21: =EXP(-B18*$F$10/(1-Rec)/10000)-EXP(-B21*$F$10/(1-Rec)/10000) -> 0.003327783945 | D21: =(1-EXP(-(CDSSpread/(1-Rec)/10000+IRate)*(5-B21)))/(CDSSpread/(1-Rec)/10000+IRate) -> 3.597686091 | E21: 118.5854123 | F21: 0.01896022854 | G21: 0.09924969779
B22: 0.25 | C22: =EXP(-B19*$F$10/(1-Rec)/10000)-EXP(-B22*$F$10/(1-Rec)/10000) -> 0.008298707361 | D22: =(1-EXP(-(CDSSpread/(1-Rec)/10000+IRate)*(5-B22)))/(CDSSpread/(1-Rec)/10000+IRate) -> 3.518854121 | E22: 187.5 | F22: 0.03108240814 | G22: 0.1534889776
B23: =B22+0.25 -> 0.5 | C23: =EXP(-B22*$F$10/(1-Rec)/10000)-EXP(-B23*$F$10/(1-Rec)/10000) -> 0.008229838817 | D23: =(1-EXP(-(CDSSpread/(1-Rec)/10000+IRate)*(5-B23)))/(CDSSpread/(1-Rec)/10000+IRate) -> 3.383912729 | E23: 265.1650429 | F23: 0.0404402064 | G23: 0.2087421163
B24: 0.75 | C24: =EXP(-B23*$F$10/(1-Rec)/10000)-EXP(-B24*$F$10/(1-Rec)/10000) -> 0.008161541793 | D24: =(1-EXP(-(CDSSpread/(1-Rec)/10000+IRate)*(5-B24)))/(CDSSpread/(1-Rec)/10000+IRate) -> 3.244397484 | E24: 324.7595264 | F24: 0.04658837174 | G24: 0.2451154089
B25: 1 | C25: =EXP(-B24*$F$10/(1-Rec)/10000)-EXP(-B25*$F$10/(1-Rec)/10000) -> 0.008093811546 | D25: =(1-EXP(-(CDSSpread/(1-Rec)/10000+IRate)*(5-B25)))/(CDSSpread/(1-Rec)/10000+IRate) -> 3.100153354 | E25: 375 | F25: 0.05086023566 | G25: 0.2704513186
B26: 1.25 | C26: =EXP(-B25*$F$11/(1-Rec)/10000)-EXP(-B26*$F$11/(1-Rec)/10000) -> 0.009939697709 | D26: =(1-EXP(-(CDSSpread/(1-Rec)/10000+IRate)*(5-B26)))/(CDSSpread/(1-Rec)/10000+IRate) -> 2.951020052 | E26: 419.2627458 | F26: 0.05483244681 | G26: 0.2878280351
B27: 1.5 | C27: =EXP(-B26*$F$11/(1-Rec)/10000)-EXP(-B27*$F$11/(1-Rec)/10000) -> 0.009836696587 | D27: =(1-EXP(-(CDSSpread/(1-Rec)/10000+IRate)*(5-B27)))/(CDSSpread/(1-Rec)/10000+IRate) -> 2.79683186 | E27: 459.2793268 | F27: 0.05664314953 | G27: 0.2988256781
B28: 1.75 | C28: =EXP(-B27*$F$11/(1-Rec)/10000)-EXP(-B28*$F$11/(1-Rec)/10000) -> 0.009734762824 | D28: =(1-EXP(-(CDSSpread/(1-Rec)/10000+IRate)*(5-B28)))/(CDSSpread/(1-Rec)/10000+IRate) -> 2.637417442 | E28: 496.0783708 | F28: 0.05752898118 | G28: 0.3043713876
B29: 2 | C29: =EXP(-B28*$F$11/(1-Rec)/10000)-EXP(-B29*$F$11/(1-Rec)/10000) -> 0.00963388536 | D29: =(1-EXP(-(CDSSpread/(1-Rec)/10000+IRate)*(5-B29)))/(CDSSpread/(1-Rec)/10000+IRate) -> 2.472599655 | E29: 530.3300859 | F29: 0.05758941454 | G29: 0.305052598
B30: 2.25 | C30: =EXP(-B29*$F$12/(1-Rec)/10000)-EXP(-B30*$F$12/(1-Rec)/10000) -> 0.01124007093 | D30: =(1-EXP(-(CDSSpread/(1-Rec)/10000+IRate)*(5-B30)))/(CDSSpread/(1-Rec)/10000+IRate) -> 2.302195349 | E30: 562.5 | F30: 0.05782577554 | G30: 0.6
B31: 2.5 | C31: =EXP(-B30*$F$12/(1-Rec)/10000)-EXP(-B31*$F$12/(1-Rec)/10000) -> 0.01110044452 | D31: =(1-EXP(-(CDSSpread/(1-Rec)/10000+IRate)*(5-B31)))/(CDSSpread/(1-Rec)/10000+IRate) -> 2.126015171 | E31: 592.9270613 | F31: 0.05639157435 | G31: 0.6
B32: 2.75 | C32: =EXP(-B31*$F$12/(1-Rec)/10000)-EXP(-B32*$F$12/(1-Rec)/10000) -> 0.01096255259 | D32: =(1-EXP(-(CDSSpread/(1-Rec)/10000+IRate)*(5-B32)))/(CDSSpread/(1-Rec)/10000+IRate) -> 1.943863345 | E32: 621.8671482 | F32: 0.05427399145 | G32: 0.6
B33: 3 | C33: =EXP(-B32*$F$12/(1-Rec)/10000)-EXP(-B33*$F$12/(1-Rec)/10000) -> 0.01082637357 | D33: =(1-EXP(-(CDSSpread/(1-Rec)/10000+IRate)*(5-B33)))/(CDSSpread/(1-Rec)/10000+IRate) -> 1.755537462 | E33: 649.5190528 | F33: 0.05149293098 | G33: 0.6
B34: 3.25 | C34: =EXP(-B33*$F$13/(1-Rec)/10000)-EXP(-B34*$F$13/(1-Rec)/10000) -> 0.01215324873 | D34: =(1-EXP(-(CDSSpread/(1-Rec)/10000+IRate)*(5-B34)))/(CDSSpread/(1-Rec)/10000+IRate) -> 1.560828252 | E34: 676.0408641 | F34: 0.04887608763 | G34: 0.6
B35: 3.5 | C35: =EXP(-B34*$F$13/(1-Rec)/10000)-EXP(-B35*$F$13/(1-Rec)/10000) -> 0.01197729993 | D35: =(1-EXP(-(CDSSpread/(1-Rec)/10000+IRate)*(5-B35)))/(CDSSpread/(1-Rec)/10000+IRate) -> 1.359519352 | E35: 701.56076 | F35: 0.04478117074 | G35: 0.6
B36: 3.75 | C36: =EXP(-B35*$F$13/(1-Rec)/10000)-EXP(-B36*$F$13/(1-Rec)/10000) -> 0.01180389843 | D36: =(1-EXP(-(CDSSpread/(1-Rec)/10000+IRate)*(5-B36)))/(CDSSpread/(1-Rec)/10000+IRate) -> 1.151387063 | E36: 726.1843774 | F36: 0.04004493821 | G36: 0.6
B37: 4 | C37: =EXP(-B36*$F$13/(1-Rec)/10000)-EXP(-B37*$F$13/(1-Rec)/10000) -> 0.01163300735 | D37: =(1-EXP(-(CDSSpread/(1-Rec)/10000+IRate)*(5-B37)))/(CDSSpread/(1-Rec)/10000+IRate) -> 0.9362001072 | E37: 750 | F37: 0.03466567911 | G37: 0.6
B38: 4.25 | C38: =EXP(-B37*$F$14/(1-Rec)/10000)-EXP(-B38*$F$14/(1-Rec)/10000) -> 0.01265968191 | D38: =(1-EXP(-(CDSSpread/(1-Rec)/10000+IRate)*(5-B38)))/(CDSSpread/(1-Rec)/10000+IRate) -> 0.7137193647 | E38: 773.0823048 | F38: 0.02932933312 | G38: 0.6
B39: 4.5 | C39: =EXP(-B38*$F$14/(1-Rec)/10000)-EXP(-B39*$F$14/(1-Rec)/10000) -> 0.01245043577 | D39: =(1-EXP(-(CDSSpread/(1-Rec)/10000+IRate)*(5-B39)))/(CDSSpread/(1-Rec)/10000+IRate) -> 0.4836976123 | E39: 795.4951288 | F39: 0.02262960642 | G39: 0.6
B40: 4.75 | C40: =EXP(-B39*$F$14/(1-Rec)/10000)-EXP(-B40*$F$14/(1-Rec)/10000) -> 0.01224464817 | D40: =(1-EXP(-(CDSSpread/(1-Rec)/10000+IRate)*(5-B40)))/(CDSSpread/(1-Rec)/10000+IRate) -> 0.2458792464 | E40: 817.2935519 | F40: 0.01526558943 | G40: 0.6
B41: 5 | C41: =EXP(-B40*$F$14/(1-Rec)/10000)-EXP(-B41*$F$14/(1-Rec)/10000) -> 0.01204226194 | D41: =(1-EXP(-(CDSSpread/(1-Rec)/10000+IRate)*(5-B41)))/(CDSSpread/(1-Rec)/10000+IRate) -> 0 | E41: 838.5254916 | F41: 0.007225357163 | G41: 0.6

Sheet Spreadsheet7.5
C10: Future value | E10: Total exposure
C11: Trade 1 | D11: Trade 2 | E11: No netting | F11: Netting | G11: Netting benefit
B12: Scenario 1 | C12: 25 | D12: -15 | E12: =MAX(C12,0)+MAX(D12,0) -> 25 | F12: =MAX(C12+D12,0) -> 10 | G12: =E12-F12 -> 14.99
B13: Scenario 2 | C13: 15 | D13: -5 | E13: =MAX(C13,0)+MAX(D13,0) -> 15 | F13: =MAX(C13+D13,0) -> 10 | G13: =E13-F13 -> 5
B14: Scenario 3 | C14: 5 | D14: 5 | E14: 10 | F14: =MAX(C14+D14,0) -> 10 | G14: 0
B15: Scenario 4 | C15: -5 | D15: 15 | E15: 15 | F15: 10 | G15: 5
B16: Scenario 5 | C16: -15 | D16: 25 | E16: 25 | F16: 10 | G16: 15
B17: EE | E17: =AVERAGE(E12:E16) -> 18 | F17: =AVERAGE(F12:F16) -> 10.002 | G17: =AVERAGE(G12:G16) -> 7.998
